bitfinex/quotes_SOLUSD_20250815
["timestamp","ask_amount","ask_price","bid_price","bid_amount"]
[1755265161513,0.06,191.93,191.9,24.17153551]
[1755265161714,0.06,191.93,191.92,24.17153551]
[1755265162211,0.06,191.93,191.91,0.7]
[1755265162423,0.06,191.93,191.92,24.17153551]
[1755265163359,0.06,191.93,191.92,24.87153551]
[1755265163532,0.06,191.93,191.92,30.08203988]
[1755265163933,0.06,191.93,191.92,0.7]
[1755265164143,0.06,191.93,191.92,24.87153551]
[1755265165164,0.06,191.93,191.9,43.56]
[1755265165462,0.06,191.93,191.92,24.17153551]
[1755265165970,0.06,191.93,191.92,24.87153551]
[1755265166273,0.06,191.93,191.92,44.16]
[1755265166562,0.06,191.93,191.92,43.46]
[1755265166727,24.23153551,191.93,191.86,0.7]
[1755265166930,0.06,191.93,191.88,24.17153551]
[1755265167131,0.06,191.93,191.89,0.7]
[1755265167330,24.23153551,191.93,191.87,24.17153551]
[1755265167639,24.17153551,191.91,191.86,43.42]
[1755265167834,24.17153551,191.91,191.85,0.7]
[1755265168134,24.17153551,191.91,191.85,68.25153551]
[1755265168534,5.21104742,191.9,191.85,68.25153551]
[1755265168735,29.38203988,191.92,191.86,24.87153551]
[1755265169125,24.17153551,191.91,191.86,0.7]
[1755265169325,24.17153551,191.89,191.82,0.7]
[1755265169532,24.17153551,191.89,191.82,24.87153551]
[1755265169744,24.17153551,191.89,191.83,24.17153551]
[1755265169949,24.17153551,191.91,191.85,24.17153551]
[1755265170158,5.21050437,191.92,191.87,24.17153551]
[1755265170342,5.21050437,191.92,191.81,43.3]
[1755265170343,29.38203988,191.92,191.81,43.3]
[1755265170547,24.17153551,191.91,191.85,24.17153551]
[1755265170749,5.21104742,191.9,191.85,24.17153551]
[1755265170949,5.21104742,191.9,191.85,24.87153551]
[1755265171365,24.17153551,191.89,191.83,67.39153551]
[1755265171557,29.38258293,191.9,191.84,24.17153551]
[1755265171873,5.21104742,191.9,191.84,24.17153551]
[1755265172069,29.38258293,191.9,191.83,43.92]
[1755265172369,5.21104742,191.9,191.83,68.09153551]
[1755265172570,5.21159057,191.88,191.83,68.09153551]
[1755265172738,5.21137857,191.89,191.84,0.7]
[1755265172938,5.21137857,191.89,191.83,67.39153551]
[1755265172939,5.21109734,191.9,191.85,24.87153551]
[1755265173155,29.44178483,191.93,191.87,24.17153551]
[1755265173361,0.06,191.93,191.9,24.17153551]
[1755265173547,0.06,191.93,191.9,24.87153551]
[1755265173762,0.06,191.93,191.9,0.7]
[1755265173953,24.17153551,191.91,191.84,0.7]
[1755265174157,24.17153551,191.89,191.86,43.08]
[1755265174456,5.21159057,191.88,191.86,43.08]
[1755265174647,5.21159057,191.88,191.84,0.7]
[1755265175258,5.21159057,191.88,191.81,43.72]
[1755265175455,24.17153551,191.86,191.81,43.72]
[1755265175650,29.38312608,191.88,191.82,24.87153551]
[1755265175861,29.38312608,191.88,191.82,0.7]
[1755265176245,5.21159057,191.88,191.82,24.87153551]
[1755265176452,29.38312608,191.88,191.82,24.87153551]
[1755265176667,24.17153551,191.87,191.82,24.87153551]
[1755265176864,24.17153551,191.87,191.83,0.7]
[1755265177173,29.38312608,191.88,191.83,0.7]
[1755265177358,29.38312608,191.88,191.84,0.7]
[1755265178052,24.17153551,191.91,191.85,24.87153551]
[1755265178452,24.23153551,191.93,191.87,24.17153551]
[1755265178751,0.06,191.93,191.9,24.17153551]
[1755265178970,0.06,191.93,191.88,24.87153551]
[1755265179675,0.06,191.93,191.92,24.17153551]
[1755265179850,0.06,191.96,191.92,66.97153551]
[1755265180051,0.06,191.96,191.93,0.7]
[1755265180262,0.06,191.96,191.95,24.17153551]
[1755265180458,0.06,191.96,191.94,24.17153551]
[1755265180661,0.06,191.96,191.92,67.63153551]
[1755265180861,0.06,191.96,191.92,42.76]
[1755265181076,0.06,191.96,191.92,67.63153551]
[1755265181380,0.06,191.96,191.89,0.7]
[1755265181678,0.65,191.95,191.81,20.31970808]
[1755265181844,24.17153551,191.89,191.85,42.7]
[1755265182173,24.17153551,191.89,191.84,24.17153551]
[1755265182378,26.71,191.96,191.85,24.87153551]
[1755265182565,29.38203988,191.92,191.86,24.17153551]
[1755265182966,29.38203988,191.92,191.85,24.87153551]
[1755265182967,24.17153551,191.91,191.85,24.87153551]
[1755265183764,5.21050437,191.92,191.85,0.7]
[1755265183969,24.17153551,191.91,191.85,0.7]
[1755265184174,24.17153551,191.91,191.85,24.87153551]
[1755265184488,5.21159057,191.88,191.81,0.7]
[1755265184659,24.17153551,191.87,191.82,42.58]
[1755265184861,29.38312608,191.88,191.83,0.7]
[1755265185082,5.21159057,191.88,191.84,0.7]
[1755265185381,137.11121916,191.9,191.85,24.83153551]
[1755265185564,131.9,191.9,191.86,24.83153551]
[1755265185765,131.9,191.9,191.87,0.66]
[1755265185966,131.9,191.9,191.86,24.17153551]
[1755265186174,131.9,191.9,191.87,0.66]
[1755265186483,131.9,191.9,191.86,24.17153551]
[1755265186484,131.9,191.9,191.88,24.83153551]
[1755265186688,131.9,191.9,191.88,24.17153551]
[1755265186862,131.9,191.9,191.88,0.66]
[1755265187058,131.9,191.95,191.89,24.83153551]
[1755265187360,131.9,191.95,191.93,24.17153551]
[1755265187562,131.9,191.95,191.92,24.17153551]
[1755265187751,131.9,191.95,191.91,24.17153551]
[1755265188156,131.9,191.95,191.85,0.66]
[1755265188157,24.17153551,191.93,191.85,0.66]
[1755265188368,24.17153551,191.92,191.86,24.17153551]
[1755265188566,5.21077588,191.91,191.86,24.17153551]
[1755265188857,5.21052655,191.92,191.87,24.17153551]
[1755265189056,5.21052655,191.92,191.8,54.14034542]
[1755265189057,24.17153551,191.9,191.84,0.66]
[1755265189260,24.17153551,191.89,191.83,42.4]
[1755265189465,24.17153551,191.89,191.83,66.57153551]
[1755265189679,132.56,191.91,191.84,24.17153551]
[1755265189855,156.07153551,191.91,191.85,24.17153551]
[1755265190058,0.06,191.96,191.88,24.17153551]
[1755265190256,24.23153551,191.96,191.9,24.17153551]
[1755265190457,5.20969002,191.95,191.9,24.17153551]
[1755265190687,5.20969002,191.95,191.88,43.06]
[1755265190688,5.26948072,191.96,191.91,24.83153551]
[1755265190863,0.06,191.96,191.91,24.83153551]
[1755265191258,0.06,191.96,191.92,24.83153551]
[1755265191563,0.06,191.96,191.92,0.66]
[1755265191963,0.06,191.96,191.95,24.17153551]
[1755265192164,0.06,191.96,191.93,24.83153551]
[1755265192367,0.06,191.96,191.93,0.66]
[1755265192574,0.06,191.96,191.93,24.83153551]
[1755265192967,0.06,191.96,191.94,24.17153551]
[1755265193177,0.06,191.96,191.94,0.66]
[1755265193383,0.06,191.96,191.95,24.83153551]
[1755265193897,0.06,191.96,191.93,66.45153551]
[1755265194065,0.06,191.96,191.94,24.17153551]
[1755265195698,0.06,191.96,191.93,42.28]
[1755265196892,0.06,191.96,191.93,67.11153551]
[1755265197469,0.06,191.96,191.95,24.17153551]
[1755265197881,0.06,191.97,191.95,24.83153551]
[1755265198086,0.06,191.97,191.96,0.66]
[1755265198477,0.06,191.97,191.94,66.85153551]
[1755265198790,0.06,191.97,191.94,42.68]
[1755265198973,0.06,191.97,191.95,24.17153551]
[1755265199182,0.06,191.97,191.94,42.68]
[1755265199183,0.06,191.97,191.92,42.64]
[1755265199372,3.40569947,191.96,191.93,24.17153551]
[1755265199574,3.40569947,191.95,191.91,66.15153551]
[1755265199896,3.40569947,191.96,191.92,0.66]
[1755265200108,3.40569947,191.95,191.92,0.66]
[1755265200308,0.06,191.97,191.92,0.66]
[1755265200309,3.40569947,191.96,191.92,0.66]
[1755265200511,3.40569947,191.95,191.91,41.98]
[1755265200813,5.21023289,191.93,191.9,41.92]
[1755265200989,3.40569947,191.92,191.9,41.92]
[1755265201188,3.40569947,191.92,191.9,66.75153551]
[1755265201402,8.61544575,191.95,191.9,66.75153551]
[1755265201591,3.40569947,191.96,191.94,24.17153551]
[1755265201811,0.06,191.97,191.95,24.83153551]
[1755265202008,3.46569947,191.97,191.96,24.17153551]
[1755265202312,0.06,191.97,191.96,24.83153551]
[1755265203019,0.06,191.97,191.96,45.1471697]
[1755265203322,0.06,191.99,191.96,45.1471697]
[1755265203609,0.06,191.99,191.98,24.17153551]
[1755265203818,0.06,191.99,191.98,81.09775108]
[1755265204003,0.06,191.99,191.98,81.75775108]
[1755265204198,1e-08,191.99,191.98,81.75775108]
[1755265204391,0.06,192.02,192.01,41.10621557]
[1755265204585,0.06,192.05,192.02,15.10621557]
[1755265204788,3.40569947,192.13,192.02,15.10621557]
[1755265204789,3.40569947,192.13,192.09,20.31210864]
[1755265204985,0.06,192.18,192.09,20.31210864]
[1755265204986,3.40569947,192.17,192.09,99.25837682]
[1755265205185,0.06,192.18,192.15,24.17153551]
[1755265205403,0.06,192.18,192.15,81.03775108]
[1755265205605,0.06,192.18,192.17,41.10621557]
[1755265205784,0.06,192.18,192.17,65.27775108]
[1755265205986,0.06,192.18,192.17,65.93775108]
[1755265206237,0.06,192.2,192.17,65.93775108]
[1755265206515,0.06,192.2,192.19,39.27775108]
[1755265206818,0.06,192.28,192.23,26.0]
[1755265207019,0.06,192.28,192.24,15.10621557]
[1755265207214,0.06,192.28,192.24,15.76621557]
[1755265207389,0.06,192.28,192.27,24.17153551]
[1755265208006,0.06,192.28,192.27,39.93775108]
[1755265208206,0.06,192.28,192.27,81.61775108]
[1755265208425,0.06,192.28,192.27,83.70081408]
[1755265208631,0.06,192.28,192.27,2.083063]
[1755265208805,0.06,192.28,192.27,41.68]
[1755265209002,0.06,192.28,192.27,66.51153551]
[1755265209204,0.06,192.28,192.27,107.61775108]
[1755265209503,0.06,192.3,192.29,41.10621557]
[1755265209699,0.06,192.3,192.29,107.33775108]
[1755265210109,0.06,192.3,192.28,0.66]
[1755265210404,0.06,192.3,192.29,66.21153551]
[1755265210603,0.06,192.3,192.25,26.0]
[1755265210604,0.06,192.3,192.27,42.04]
[1755265210817,0.06,192.3,192.27,66.21153551]
[1755265211009,0.66,192.29,192.25,24.17153551]
[1755265211249,0.06,192.3,192.25,42.02]
[1755265211250,0.66,192.28,192.25,42.02]
[1755265211423,24.17153551,192.29,192.22,42.02]
[1755265211622,24.83153551,192.27,192.21,24.17153551]
[1755265211835,24.83153551,192.27,192.18,15.10621557]
[1755265211836,0.66,192.26,192.2,66.19153551]
[1755265212010,26.0,192.23,192.11,5.20531303]
[1755265212208,26.0,192.23,192.15,24.17153551]
[1755265212209,4.02119293,192.22,192.15,24.17153551]
[1755265212407,26.0,192.21,192.14,42.76]
[1755265212712,0.66,192.2,192.16,24.17153551]
[1755265212936,5.86318434,192.19,192.16,24.17153551]
[1755265213116,5.20264294,192.21,192.18,24.17153551]
[1755265213322,0.66,192.21,192.16,24.17153551]
[1755265213537,0.66,192.2,192.13,15.10621557]
[1755265213751,0.66,192.2,192.16,66.89153551]
[1755265214041,29.37407721,192.22,192.16,42.72]
[1755265214208,0.66,192.2,192.16,66.89153551]
[1755265214541,5.2025417,192.22,192.16,66.89153551]
[1755265214542,5.2025417,192.22,192.17,24.17153551]
[1755265214713,5.2025417,192.22,192.2,24.17153551]
[1755265214913,30.0,192.21,192.2,24.17153551]
[1755265215117,30.0,192.21,192.12,15.632735]
[1755265215118,30.0,192.21,192.13,0.7]
[1755265215318,30.67,192.21,192.16,15.10621557]
[1755265215727,24.84153551,192.2,192.13,15.10621557]
[1755265215943,24.17153551,192.17,192.14,42.68]
[1755265216348,24.17153551,192.17,192.1,15.80621557]
[1755265216349,24.17153551,192.15,192.1,0.7]
[1755265216552,24.17153551,192.15,192.12,42.66]
[1755265216727,24.84153551,192.17,192.12,66.83153551]
[1755265216929,5.20399666,192.16,192.12,67.53153551]
[1755265217536,5.20399666,192.16,192.12,42.66]
[1755265217723,5.20318434,192.19,192.13,24.17153551]
[1755265217931,24.17153551,192.18,192.12,43.36]
[1755265218125,5.20318434,192.19,192.12,67.53153551]
[1755265218126,18.21114521,192.19,192.12,67.53153551]
[1755265218454,24.17153551,192.18,192.12,67.53153551]
[1755265218621,5.20318434,192.19,192.15,24.17153551]
[1755265218952,35.20400517,192.16,192.12,42.66]
[1755265219151,29.37554068,192.16,192.12,42.66]
[1755265219618,24.17153551,192.15,192.09,39.27775108]
[1755265219826,24.17153551,192.15,192.1,42.62]
[1755265220040,30.0,192.14,192.1,0.7]
[1755265220247,30.0,192.14,192.09,66.77153551]
[1755265220445,24.17153551,192.12,192.06,24.17153551]
[1755265220761,24.17153551,192.12,191.97,13.02275008]
[1755265220762,24.17153551,192.07,192.01,66.79153551]
[1755265220933,29.37824174,192.06,192.01,42.62]
[1755265221131,30.04824174,192.06,192.01,42.62]
[1755265221353,5.20670623,192.06,192.01,66.79153551]
[1755265221526,5.20670623,192.06,192.03,24.17153551]
[1755265221737,29.37796946,192.08,192.02,24.87153551]
[1755265222044,24.17153551,192.07,192.01,66.79153551]
[1755265222357,24.84153551,192.06,192.01,42.62]
[1755265222556,24.17153551,192.04,192.01,42.62]
[1755265222763,24.84153551,192.04,191.99,42.54]
[1755265222932,29.37900709,192.04,191.99,42.54]
[1755265223434,30.0,192.05,192.02,24.17153551]
[1755265223635,30.0,192.05,192.04,24.17153551]
[1755265224148,5.2059536,192.09,192.01,0.7]
[1755265224149,29.37748911,192.09,192.03,24.17153551]
[1755265224341,29.37748911,192.09,192.01,0.7]
[1755265224342,0.67,192.1,192.04,24.17153551]
[1755265224548,29.37674581,192.12,192.06,24.17153551]
[1755265224754,30.0,192.07,192.06,24.17153551]
[1755265225353,30.0,192.07,192.06,30.07824174]
[1755265225555,24.17153551,192.11,192.03,0.7]
[1755265225744,24.17153551,192.09,192.04,42.42]
[1755265226052,0.67,192.08,192.04,42.42]
[1755265226657,31.20509971,192.12,192.07,24.17153551]
[1755265226857,55.37663522,192.12,192.04,42.42]
[1755265227040,4.0384481,192.11,192.01,15.10621557]
[1755265227248,24.17153551,192.09,192.03,24.17153551]
[1755265227452,0.67,192.11,192.05,24.17153551]
[1755265227650,30.0,192.07,192.03,0.7]
[1755265227964,30.67,192.07,192.02,42.42]
[1755265228253,24.17153551,192.05,192.02,42.42]
[1755265228462,0.67,192.1,192.03,24.17153551]
[1755265228645,50.17153551,192.09,192.04,24.17153551]
[1755265228844,24.84153551,192.08,192.02,24.17153551]
[1755265229160,5.20643515,192.07,192.02,24.17153551]
[1755265229566,24.17153551,192.05,191.99,24.90153551]
[1755265229862,0.67,192.06,192.01,42.38]
[1755265230362,24.84153551,192.06,192.01,42.38]
[1755265230568,24.17153551,192.04,191.99,0.03]
[1755265230731,0.67,192.06,191.99,0.73]
[1755265231068,30.0,192.03,192.0,15.10621557]
[1755265231287,0.67,192.02,191.99,0.03]
[1755265231460,24.17153551,192.0,191.99,0.03]
[1755265232133,54.84153551,192.0,191.99,0.03]
[1755265232539,30.0,192.0,191.99,0.03]
[1755265233548,30.0,192.0,191.99,24.90153551]
[1755265233862,30.04766962,192.09,192.0,15.10621557]
[1755265234060,10.85559257,192.17,192.08,24.17153551]
[1755265234061,0.67,192.16,192.08,24.17153551]
[1755265234261,24.84153551,192.16,192.05,15.10621557]
[1755265234471,27.55000883,192.15,192.08,24.17153551]
[1755265234757,3.37847332,192.14,192.08,24.17153551]
[1755265234963,30.0,192.09,192.08,24.17153551]
[1755265235672,30.0,192.09,192.06,0.7]
[1755265235847,30.0,192.09,192.06,24.17153551]
[1755265236048,24.84153551,192.12,192.06,24.17153551]
[1755265236252,27.55204174,192.11,192.05,24.17153551]
[1755265236472,24.17153551,192.08,192.02,24.87153551]
[1755265236656,30.0,192.07,192.02,24.87153551]
[1755265237056,5.20670623,192.06,192.01,42.12]
[1755265237275,5.87670623,192.06,192.01,42.12]
[1755265237470,30.0,192.07,192.05,24.17153551]
[1755265237689,30.0,192.07,192.03,15.10621557]
[1755265237867,35.20666398,192.07,192.0,57.18621557]
[1755265238071,59.37819949,192.07,192.01,24.17153551]
[1755265238268,35.20666398,192.07,191.99,0.73]
[1755265238457,35.20666398,192.07,192.0,15.10621557]
[1755265238668,59.37819949,192.07,192.01,24.17153551]
[1755265238879,24.17153551,192.06,192.0,39.27775108]
[1755265239191,35.20697734,192.05,192.0,39.27775108]
[1755265239383,35.20697734,192.05,192.0,24.17153551]
[1755265239556,35.87697734,192.05,192.0,24.17153551]
[1755265239763,54.17153551,192.05,191.99,0.03]
[1755265239974,30.0,192.05,192.0,24.17153551]
[1755265240161,30.0,192.05,192.0,24.87153551]
[1755265240477,30.0,192.05,191.99,24.20153551]
[1755265240478,54.84153551,192.05,191.99,24.20153551]
[1755265240986,5.20724848,192.04,192.0,24.17153551]
[1755265241326,5.20724848,192.04,191.99,0.03]
[1755265241327,30.0,192.03,192.01,0.03]
[1755265241594,30.67,192.03,192.01,0.03]
[1755265241785,54.17153551,192.03,192.01,0.03]
[1755265242084,30.0,192.03,192.02,24.17153551]
[1755265242463,30.0,192.03,192.02,24.87153551]
[1755265242791,41.96,192.08,192.02,24.87153551]
[1755265242988,41.96,192.08,192.04,24.17153551]
[1755265243193,30.0,192.05,192.02,24.17153551]
[1755265244296,30.0,192.05,192.01,0.03]
[1755265244592,24.84153551,192.04,192.01,0.03]
[1755265244796,24.17153551,192.03,192.01,0.03]
[1755265245103,5.20751965,192.03,192.01,0.03]
[1755265245300,29.37905516,192.03,192.01,0.03]
[1755265245480,30.67,192.02,192.01,0.03]
[1755265245676,30.0,192.02,192.01,0.03]
[1755265247184,60.04932636,192.02,192.01,0.03]
[1755265247412,35.87779085,192.02,192.01,0.03]
[1755265247578,35.20779085,192.02,192.01,0.03]
[1755265248284,30.0,192.02,192.01,0.03]
[1755265249006,30.0,192.02,192.01,24.90153551]
[1755265249187,30.0,192.02,192.01,24.20153551]
[1755265249398,30.0,192.02,192.01,0.03]
[1755265249707,30.0,192.02,192.01,24.90153551]
[1755265250019,5.20701662,192.05,192.01,24.90153551]
[1755265250020,0.67,192.14,192.02,15.10621557]
[1755265250177,24.17153551,192.12,192.06,24.17153551]
[1755265250372,54.17153551,192.07,192.01,24.20153551]
[1755265250891,30.0,192.07,192.02,24.17153551]
[1755265251210,30.0,192.07,192.06,24.17153551]
[1755265251775,30.0,192.07,192.06,24.87153551]
[1755265251979,30.0,192.07,192.06,39.97775108]
[1755265252274,29.37554482,192.16,192.07,15.10621557]
[1755265252478,24.17153551,192.12,192.06,0.7]
[1755265252681,42.25,192.15,192.03,0.7]
[1755265252903,4.06076181,192.14,192.07,24.17153551]
[1755265253106,5.20480924,192.13,192.07,15.10621557]
[1755265253295,5.20480924,192.13,192.09,24.17153551]
[1755265253499,29.37634475,192.13,192.06,41.62]
[1755265253678,24.17153551,192.09,192.03,66.49153551]
[1755265253874,24.17153551,192.1,192.04,24.17153551]
[1755265254092,24.17153551,192.09,192.03,65.79153551]
[1755265254299,24.17153551,192.09,192.03,41.62]
[1755265254483,24.17153551,192.09,192.03,24.17153551]
[1755265254685,0.67,192.1,192.05,24.17153551]
[1755265254875,4.06991182,192.1,192.03,24.17153551]
[1755265255078,5.20616409,192.08,192.03,24.17153551]
[1755265255292,5.20616409,192.08,192.01,41.63]
[1755265255293,24.84153551,192.07,192.01,24.20153551]
[1755265255504,3.39991182,192.06,192.02,24.17153551]
[1755265255809,29.3776996,192.08,192.01,0.03]
[1755265255992,3.39991182,192.07,192.02,24.17153551]
[1755265256347,3.39991182,192.07,192.01,24.20153551]
[1755265256482,3.39991182,192.06,192.01,24.20153551]
[1755265256688,3.39991182,192.07,192.05,24.17153551]
[1755265256890,24.17153551,192.1,192.04,24.17153551]
[1755265257204,3.39991182,192.09,192.04,24.17153551]
[1755265257378,5.20599912,192.09,192.04,24.17153551]
[1755265257582,8.60591094,192.09,192.04,24.17153551]
[1755265257998,8.60591094,192.09,192.04,24.87153551]
[1755265258206,24.17153551,192.06,192.01,0.03]
[1755265258583,27.58343081,192.05,192.01,0.03]
[1755265258780,3.4118953,192.04,192.01,0.03]
[1755265259414,5.20751965,192.03,192.01,0.03]
[1755265260211,3.4118953,192.02,192.01,0.03]
[1755265260510,3.4118953,192.04,192.01,24.20153551]
[1755265260728,3.41875702,192.07,192.03,16.13762512]
[1755265260932,21.34351819,192.09,192.02,16.13762512]
[1755265260933,3.41875702,192.06,192.02,16.13762512]
[1755265261148,23.35300964,192.05,192.01,0.03]
[1755265261326,5.20751965,192.03,192.01,0.03]
[1755265261507,3.41875702,192.03,192.01,0.03]
[1755265261705,3.41875702,192.02,192.01,0.03]
[1755265261930,3.41875702,192.03,192.01,0.03]
[1755265262121,3.41875702,192.02,192.01,0.03]
[1755265262327,3.41875702,192.03,192.01,0.03]
[1755265263134,3.41875702,192.02,192.01,0.03]
[1755265263522,3.41875702,192.04,192.01,16.86762512]
[1755265263726,3.41875702,192.03,192.01,0.03]
[1755265263928,3.41875702,192.02,192.01,0.03]
[1755265264124,3.41875702,192.02,191.98,15.22762512]
[1755265264439,3.41875702,192.01,191.98,15.92762512]
[1755265264735,5.20727505,192.04,191.98,0.7]
[1755265264938,19.5631381,192.03,191.98,0.7]
[1755265265116,3.42551298,192.02,191.98,0.7]
[1755265265317,8.63362749,192.01,191.98,16.83762512]
[1755265265516,3.42551298,192.0,191.99,16.83762512]
[1755265265734,3.42551298,192.01,191.99,0.7]
[1755265265929,3.42551298,192.0,191.99,0.7]
[1755265266355,3.42551298,192.0,191.97,41.45]
[1755265266645,3.42551298,192.0,191.97,57.58762512]
[1755265266848,3.42551298,192.0,191.97,16.86762512]
[1755265267149,3.42551298,192.0,191.98,16.83762512]
[1755265267343,5.20779085,192.02,191.98,16.83762512]
[1755265267538,3.42551298,192.01,191.97,16.16762512]
[1755265267745,3.42551298,192.01,191.97,0.03]
[1755265267912,3.42551298,192.0,191.97,0.03]
[1755265268241,16.13762512,191.98,191.97,0.03]
[1755265268558,19.5631381,191.98,191.97,1e-08]
[1755265268734,23.36457486,191.98,191.97,1e-08]
[1755265269037,19.5631381,191.98,191.97,1e-08]
[1755265269214,26.0,191.96,191.95,1e-08]
[1755265269419,26.0,191.96,191.9,0.03]
[1755265269420,18.23486505,191.94,191.9,0.03]
[1755265269625,16.13762512,191.91,191.9,0.03]
[1755265269824,23.36289287,191.91,191.9,0.03]
[1755265270031,24.03289287,191.91,191.9,0.03]
[1755265270238,20.2331381,191.91,191.9,0.03]
[1755265270446,24.02736261,191.91,191.9,0.03]
[1755265271357,24.02736261,191.91,191.86,0.03]
[1755265271358,16.13762512,191.89,191.86,0.03]
[1755265271662,3.42551298,191.89,191.86,0.03]
[1755265271828,3.42551298,191.89,191.86,0.73]
[1755265272028,16.13762512,191.92,191.86,0.03]
[1755265272223,3.42551298,191.91,191.86,0.03]
[1755265272416,3.42551298,191.91,191.86,16.16762512]
[1755265272417,16.13762512,191.91,191.86,16.16762512]
[1755265272646,16.13762512,191.91,191.86,0.03]
[1755265273017,19.54629715,191.9,191.86,0.03]
[1755265273218,16.13762512,191.91,191.86,0.03]
[1755265273422,16.13762512,191.94,191.89,0.7]
[1755265273719,3.40679457,191.93,191.88,0.03]
[1755265273923,3.40679457,191.94,191.9,16.13762512]
[1755265274236,26.0,191.98,191.92,16.13762512]
[1755265274237,62.56671685,191.98,191.92,16.13762512]
[1755265274437,3.40597096,191.97,191.91,0.7]
[1755265274652,19.54359608,191.97,191.91,16.83762512]
[1755265274825,16.13762512,191.97,191.91,0.7]
[1755265275022,16.13762512,191.97,191.91,16.83762512]
[1755265275231,5.20941862,191.96,191.91,16.83762512]
[1755265275738,21.34704374,191.96,191.9,31.24384069]
[1755265275922,5.20941862,191.96,191.89,5.2112183]
[1755265276131,16.13762512,191.94,191.89,16.13762512]
[1755265276840,16.13762512,191.9,191.88,0.03]
[1755265277224,16.81762512,191.89,191.88,0.03]
[1755265277628,16.13762512,191.89,191.88,0.03]
[1755265278622,16.81762512,191.89,191.88,0.03]
[1755265279062,20.21323246,191.89,191.88,0.03]
[1755265279348,26.0,191.87,191.86,0.03]
[1755265279553,45.53323246,191.87,191.86,0.03]
[1755265279736,46.21323246,191.87,191.86,0.03]
[1755265281255,64.45475014,191.87,191.82,0.03]
[1755265281467,16.13762512,191.83,191.81,0.2]
[1755265281623,16.13762512,191.83,191.81,1e-08]
[1755265281624,60.77323246,191.82,191.81,1e-08]
[1755265281825,61.45323246,191.82,191.81,1e-08]
[1755265282562,26.0,191.8,191.79,1e-08]
[1755265282853,45.53323246,191.8,191.79,1e-08]
[1755265283351,41.74,191.81,191.79,1e-08]
[1755265283520,41.74,191.81,191.79,0.70000001]
[1755265283521,0.5,191.81,191.79,0.70000001]
[1755265283723,0.5,191.81,191.8,0.7]
[1755265283951,0.5,191.81,191.8,31.94384069]
[1755265284160,57.37762512,191.9,191.81,15.10621557]
[1755265284363,16.13762512,191.82,191.79,1e-08]
[1755265284657,16.13762512,191.8,191.79,1e-08]
[1755265284852,16.13762512,191.8,191.77,0.03]
[1755265284853,19.51491342,191.8,191.77,0.03]
[1755265285035,5.69847499,191.86,191.76,0.03]
[1755265285036,26.0,191.77,191.76,0.03]
[1755265285234,50.72949338,191.77,191.76,0.03]
[1755265285434,51.40949338,191.77,191.76,0.03]
[1755265285638,16.13762512,191.77,191.76,0.03]
[1755265286020,21.35220508,191.77,191.76,0.03]
[1755265286222,62.5919799,191.78,191.76,0.03]
[1755265286529,41.24,191.79,191.76,0.03]
[1755265286843,57.37762512,191.79,191.76,0.03]
[1755265287359,5.21430806,191.78,191.76,0.03]
[1755265288150,16.81762512,191.77,191.76,0.03]
[1755265288531,20.18518848,191.77,191.76,0.03]
[1755265288935,16.13762512,191.77,191.76,0.03]
[1755265289131,57.37762512,191.77,191.76,0.03]
[1755265289355,63.27220508,191.77,191.76,0.03]
[1755265289737,63.27220508,191.77,191.75,0.03]
[1755265289738,26.0,191.74,191.72,0.2]
[1755265289922,41.24,191.73,191.72,0.2]
[1755265290119,26.68,191.74,191.72,0.2]
[1755265290438,41.24,191.73,191.72,0.2]
[1755265290844,57.37762512,191.73,191.72,0.2]
[1755265291249,41.92,191.73,191.72,0.2]
[1755265291557,63.27329298,191.73,191.72,0.2]
[1755265291932,57.37762512,191.73,191.72,0.2]
[1755265292131,58.05762512,191.73,191.72,0.2]
[1755265292528,61.41961276,191.73,191.72,1e-08]